bitfinex/quotes_ETHUSD_20251010
["timestamp","ask_amount","ask_price","bid_price","bid_amount"]
[1760079666973,0.142,4331.2,4330.6,0.001]
[1760079667200,0.142,4331.2,4330.1,0.019]
[1760079667201,2.30914884,4330.6,4330.1,0.019]
[1760079667408,2.30914884,4330.6,4330.1,0.01]
[1760079667579,5.58558138,4330.6,4330.1,0.01]
[1760079667998,2.375,4330.6,4330.1,0.01]
[1760079670948,15.05934073,4330.6,4330.1,0.01]
[1760079671242,2.94296215,4330.2,4330.1,0.01]
[1760079671405,11.38596215,4330.2,4330.1,0.01]
[1760079671654,2.375,4330.2,4330.1,0.01]
[1760079673731,1.92,4330.2,4330.1,0.01]
[1760079674811,2.375,4330.2,4330.1,0.01]
[1760079681624,4.68436215,4330.2,4330.1,0.01]
[1760079681937,5.31796215,4330.2,4330.1,0.01]
[1760079682133,5.31796215,4330.2,4329.1,0.01]
[1760079682134,0.6336,4330.0,4329.1,0.01]
[1760079682451,0.2042,4329.2,4329.1,0.01]
[1760079682811,0.6567,4329.2,4329.1,0.01]
[1760079683207,1.11764441,4329.2,4329.1,0.01]
[1760079685626,18.18391252,4329.2,4329.1,0.01]
[1760079686323,0.6336,4329.0,4328.1,0.01]
[1760079686524,2.5536,4328.8,4328.1,0.01]
[1760079686839,4.86371769,4328.8,4328.1,0.01]
[1760079687042,1.12843078,4328.7,4328.1,0.01]
[1760079687229,1.92,4328.6,4328.1,0.01]
[1760079687424,2.31026359,4328.6,4328.1,0.01]
[1760079687755,0.434,4328.5,4328.1,0.01]
[1760079688351,2.354,4328.5,4328.1,0.01]
[1760079688858,0.69443078,4328.7,4328.1,0.01]
[1760079689152,0.434,4328.4,4328.1,0.01]
[1760079690252,1.92,4328.3,4328.1,0.01]
[1760079690675,0.434,4328.2,4328.1,0.01]
[1760079691162,4.66442927,4328.2,4328.1,0.01]
[1760079691698,2.354,4328.2,4328.1,0.01]
[1760079693053,2.354,4328.2,4327.3,0.63328982]
[1760079693054,0.6336,4328.0,4327.3,0.63328982]
[1760079693259,0.6555,4327.9,4327.3,0.63328982]
[1760079693683,0.2237,4327.9,4327.3,0.63328982]
[1760079693892,0.4318,4327.8,4327.4,2.31080705]
[1760079694060,0.4318,4327.7,4327.3,0.63328982]
[1760079694256,0.4318,4327.6,4327.4,2.3108489]
[1760079694463,0.4318,4327.5,4327.4,2.3108489]
[1760079694858,0.4318,4327.5,4327.3,2.94419904]
[1760079695059,0.2237,4327.9,4327.4,2.3108564]
[1760079695269,0.2237,4327.9,4327.3,0.63328982]
[1760079695501,2.40301009,4328.0,4327.6,2.31069768]
[1760079695665,0.48301009,4328.0,4327.6,2.31071435]
[1760079695998,0.4283,4328.2,4327.3,0.92871434]
[1760079695999,0.4283,4327.9,4327.5,2.31079563]
[1760079696298,0.91131009,4327.8,4327.4,2.31085612]
[1760079696463,0.48301009,4327.7,4327.3,0.92871434]
[1760079696662,2.53110102,4328.0,4327.3,0.92871434]
[1760079696663,0.91131009,4327.6,4327.3,0.63328982]
[1760079696861,0.4283,4327.6,4327.3,0.63328982]
[1760079697068,0.91131009,4327.5,4327.3,0.63328982]
[1760079697357,0.91131009,4327.4,4327.3,0.63328982]
[1760079698029,5.14216649,4327.4,4327.3,0.48294227]
[1760079698208,5.14216649,4327.4,4327.1,0.01]
[1760079698209,1.92,4327.3,4327.1,0.01]
[1760079698410,5.34757329,4327.2,4327.1,0.01]
[1760079698597,5.77587329,4327.2,4327.1,0.01]
[1760079699000,5.77587329,4327.2,4325.3,2.31194057]
[1760079699001,0.6336,4326.7,4325.3,2.3119777]
[1760079699323,0.80808343,4326.4,4325.3,2.31195976]
[1760079699494,0.48301009,4326.3,4325.3,2.31195976]
[1760079699695,0.48301009,4326.2,4325.4,2.31190817]
[1760079700112,2.83131009,4326.2,4325.2,2.3119887]
[1760079700325,3.22280747,4326.2,4325.1,0.01]
[1760079700822,0.91131009,4326.2,4325.1,0.01]
[1760079701125,1.51626544,4326.2,4325.2,2.31201961]
[1760079701287,1.51626544,4326.2,4325.1,0.01]
[1760079701621,1.51626544,4326.2,4325.3,2.31192539]
[1760079701622,1.08796544,4326.2,4325.3,2.31192539]
[1760079701819,1.51626544,4326.2,4325.4,2.33500567]
[1760079702134,1.51626544,4326.2,4325.6,2.31181716]
[1760079702337,3.88835941,4326.2,4325.1,0.01]
[1760079702628,3.88835941,4326.2,4325.3,2.31192652]
[1760079702784,3.28268246,4326.2,4325.6,2.31180273]
[1760079702989,3.28268246,4326.2,4325.1,0.01]
[1760079703290,3.28268246,4326.2,4325.4,2.31190569]
[1760079703489,3.28268246,4326.2,4325.5,2.31186024]
[1760079703686,3.28268246,4326.2,4325.6,2.31181309]
[1760079703891,3.28268246,4326.2,4325.1,2.015]
[1760079704091,2.8005967,4326.2,4325.6,2.31180409]
[1760079704321,2.8005967,4326.2,4325.9,2.31162065]
[1760079704526,2.8005967,4326.2,4325.7,2.33486858]
[1760079704708,2.8005967,4326.2,4326.0,2.31159612]
[1760079705031,0.4522967,4326.2,4326.1,2.32155081]
[1760079705186,0.4283,4326.8,4326.1,0.01]
[1760079705187,1.03305262,4326.8,4326.1,0.01]
[1760079705393,0.4283,4326.8,4326.1,0.01]
[1760079705823,1.03305262,4326.8,4326.1,2.32154788]
[1760079706026,0.4283,4326.8,4326.3,2.31139675]
[1760079706224,0.4283,4326.8,4326.1,0.01]
[1760079706428,0.4283,4326.8,4326.5,2.31130213]
[1760079706612,0.60475262,4327.1,4326.7,2.31121588]
[1760079706823,0.1152,4326.4,4326.3,0.02311443]
[1760079707002,0.1152,4326.4,4326.3,2.54590823]
[1760079707205,0.46648271,4327.1,4327.0,2.31107002]
[1760079707441,0.4283,4327.1,4326.1,0.01]
[1760079707594,0.60535731,4327.0,4326.1,0.01]
[1760079707794,1.03365731,4327.1,4326.1,0.01]
[1760079708097,0.60535731,4327.0,4326.1,0.01]
[1760079708298,0.60535731,4327.0,4326.5,2.31131137]
[1760079708514,0.4283,4326.9,4326.6,0.21491478]
[1760079708699,0.4283,4326.9,4326.7,0.21491478]
[1760079708913,0.4283,4326.9,4326.8,0.21491478]
[1760079709268,0.60535731,4326.9,4326.8,0.21491478]
[1760079709793,1.03365731,4326.9,4326.8,0.21491478]
[1760079710021,2.73942343,4326.9,4326.8,0.21491478]
[1760079710222,3.54750686,4326.9,4326.8,0.21491478]
[1760079710623,2.31124027,4326.7,4326.1,0.01]
[1760079710806,0.6062943,4326.5,4326.1,0.01]
[1760079711005,0.8083924,4326.2,4326.1,0.01]
[1760079711205,2.31145068,4326.3,4325.3,2.31197318]
[1760079711432,0.60648264,4325.8,4325.3,2.31197318]
[1760079711629,0.4332,4325.7,4325.3,2.31197318]
[1760079711928,0.4332,4325.7,4325.4,2.31189734]
[1760079712136,0.4332,4325.7,4325.2,2.31201992]
[1760079712333,0.4312,4325.6,4325.1,0.01]
[1760079712544,0.60648264,4325.5,4325.1,0.01]
[1760079712838,0.4312,4325.5,4325.1,0.01]
[1760079713075,0.4312,4325.4,4325.1,0.01]
[1760079713557,0.60648264,4325.4,4325.1,0.01]
[1760079713761,0.4312,4325.3,4325.1,0.01]
[1760079714159,0.60648264,4325.4,4325.1,2.32205653]
[1760079714358,0.4312,4325.2,4325.1,0.01]
[1760079715057,0.91667218,4325.2,4325.1,0.01]
[1760079718871,3.22870399,4325.2,4325.1,0.01]
[1760079719359,1.52377801,4325.2,4325.1,0.01]
[1760079719927,0.91667218,4325.2,4325.1,0.01]
[1760079720148,1.52377801,4325.2,4325.1,0.01]
[1760079720356,0.91667218,4325.2,4325.1,0.01]
[1760079720955,0.91667218,4325.2,4325.1,0.011]
[1760079721151,0.48547218,4325.2,4325.1,2.32308526]
[1760079721356,0.48547218,4325.4,4325.2,2.31200477]
[1760079721673,0.48547218,4325.3,4325.2,2.31200477]
[1760079721856,0.48547218,4325.7,4325.3,2.31197811]
[1760079722165,0.91667218,4325.6,4325.1,0.011]
[1760079722340,0.4312,4325.6,4325.1,0.011]
[1760079722541,0.83780583,4325.9,4325.1,2.32307898]
[1760079722542,0.91667218,4325.5,4325.1,2.32307898]
[1760079722747,0.4312,4325.4,4325.1,0.011]
[1760079723370,0.48547218,4326.0,4325.1,0.011]
[1760079723570,0.48547218,4326.3,4326.0,2.31157168]
[1760079723769,0.1152,4325.7,4325.4,2.31190261]
[1760079723969,0.1152,4325.7,4325.6,2.31181801]
[1760079725042,0.48838008,4326.9,4325.6,0.4294]
[1760079725234,0.48838008,4326.9,4325.8,0.1152]
[1760079725235,0.1152,4326.5,4325.8,0.1152]
[1760079725434,0.1152,4326.5,4326.4,2.31139053]
[1760079726132,0.002,4326.9,4326.8,2.31117685]
[1760079726674,0.002,4326.9,4326.8,2.74057685]
[1760079726868,0.002,4326.9,4326.8,3.91118065]
[1760079727174,0.002,4326.9,4326.8,3.93429241]
[1760079728076,0.002,4326.9,4326.8,3.91118065]
[1760079729371,0.002,4326.9,4326.8,3.48178065]
[1760079729572,0.002,4326.9,4326.8,3.91118065]
[1760079729873,0.002,4326.9,4326.8,3.48178065]
[1760079730278,0.002,4326.9,4326.8,10.01978065]
[1760079730474,0.002,4326.9,4326.8,1.1706038]
[1760079730678,0.002,4326.9,4326.1,0.163]
[1760079730679,0.1152,4326.8,4326.4,3.50337352]
[1760079730880,0.1152,4326.8,4326.7,2.31123026]
[1760079731185,0.1152,4326.8,4324.8,0.4294]
[1760079731390,0.002,4326.9,4324.6,2.31335235]
[1760079731391,0.002,4326.9,4325.1,0.4404]
[1760079731586,0.4306,4326.7,4325.2,2.31203181]
[1760079731815,0.4306,4326.6,4326.0,2.31159757]
[1760079732245,0.4306,4326.5,4326.1,2.31153648]
[1760079732547,0.4306,4326.4,4326.1,2.31153648]
[1760079732745,0.4306,4326.3,4326.0,2.31159933]
[1760079732943,0.4306,4326.2,4325.9,2.3116432]
[1760079733151,2.31118759,4326.8,4325.9,2.3116432]
[1760079733152,0.4306,4326.1,4325.9,2.3116432]
[1760079733438,0.4306,4326.1,4326.0,2.31160425]
[1760079735205,0.4306,4326.5,4326.2,2.31148448]
[1760079735406,0.4306,4326.4,4325.9,2.31165099]
[1760079735619,0.4306,4326.4,4325.0,2.31211994]
[1760079735620,0.4306,4326.3,4325.1,0.011]
[1760079735940,2.3506,4326.3,4325.2,2.34503181]
[1760079736140,0.4306,4326.2,4325.3,2.31192872]
[1760079736342,0.4306,4326.1,4325.4,2.31191521]
[1760079736640,0.4306,4326.0,4325.4,2.31191521]
[1760079736848,0.4306,4325.9,4325.4,8.18591521]
[1760079737004,0.4306,4325.9,4325.1,4.72907855]
[1760079737005,0.4306,4325.8,4325.2,2.31198332]
[1760079737205,4.271,4326.8,4325.3,2.3119743]
[1760079737206,0.4306,4325.7,4325.3,2.3119743]
[1760079737419,0.4306,4325.6,4325.3,2.3119743]
[1760079737640,0.4306,4325.5,4325.3,2.3119743]
[1760079737840,2.31151706,4326.2,4325.1,3.843]
[1760079737841,0.4306,4325.4,4325.1,0.011]
[1760079738209,0.4306,4325.4,4325.2,2.31202266]
[1760079738408,0.4306,4326.1,4325.7,2.31174918]
[1760079738745,0.4306,4326.4,4326.0,2.31159465]
[1760079738911,0.4306,4326.4,4326.2,2.31148025]
[1760079739106,0.4306,4326.7,4325.4,8.944]
[1760079739441,0.002,4326.9,4325.4,9.88244]
[1760079739645,0.002,4326.9,4326.7,2.31122234]
[1760079739804,0.002,4326.9,4326.6,2.31126739]
[1760079740004,0.4306,4326.8,4326.3,4.30539536]
[1760079740209,0.4306,4326.7,4326.3,6.541]
[1760079740410,0.4306,4326.6,4326.3,6.541]
[1760079740845,0.002,4326.9,4326.5,2.3113371]
[1760079741142,0.002,4326.9,4326.8,2.31117685]
[1760079741444,0.1172,4326.9,4326.8,2.31117685]
[1760079741954,0.1172,4326.9,4326.5,0.88523371]
[1760079742256,0.1172,4326.9,4326.6,2.31128368]
[1760079742951,0.002,4326.7,4326.5,3.1965655]
[1760079743131,0.002,4326.7,4326.1,4.99572795]
[1760079743132,0.4306,4326.6,4326.1,0.1152]
[1760079743335,0.4306,4326.6,4326.4,2.31138796]
[1760079743907,0.4306,4326.5,4326.3,2.31143443]
[1760079744150,0.1152,4326.5,4326.4,2.31139053]
[1760079746042,0.1152,4326.5,4326.4,3.01433339]
[1760079746341,0.1152,4326.5,4326.4,3.44373339]
[1760079747123,0.002,4326.7,4326.6,2.31128368]
[1760079747860,0.002,4326.7,4326.6,8.85428368]
[1760079751953,0.002,4326.7,4326.6,2.31128368]
[1760079752156,0.002,4326.7,4326.6,8.85228368]
[1760079752351,0.002,4326.7,4326.0,12.36669901]
[1760079752352,0.002,4326.7,4325.5,0.4311]
[1760079752558,0.1172,4326.7,4326.6,2.31128368]
[1760079753557,0.1172,4326.7,4325.9,0.1152]
[1760079753881,0.1172,4326.7,4326.6,2.31128368]
[1760079757250,0.1172,4326.7,4326.5,8.45732937]
[1760079757850,0.1172,4326.7,4326.6,2.31128368]
[1760079760383,0.1172,4326.7,4326.5,8.85131565]
[1760079760584,0.1172,4326.7,4326.6,2.31128368]
[1760079763170,0.1172,4326.7,4326.6,8.85028368]
[1760079763697,0.002,4326.7,4326.6,10.39755056]
[1760079764012,0.002,4326.7,4326.6,10.51275056]
[1760079764374,1e-08,4326.9,4326.8,2.31117685]
[1760079764571,1e-08,4326.9,4326.8,2.33428861]
[1760079764910,1e-08,4326.9,4326.8,2.76538861]
[1760079765075,1e-08,4326.9,4326.8,4.05009253]
[1760079765648,1e-08,4326.9,4326.8,6.58058077]
[1760079769283,1e-08,4326.9,4326.8,2.74227685]
[1760079769616,1e-08,4326.9,4326.8,9.28027685]
[1760079770224,1e-08,4326.9,4326.8,2.31117685]
[1760079770388,1e-08,4326.9,4326.8,11.69967685]
[1760079770912,1e-08,4326.9,4326.8,9.29567685]
[1760079771215,1e-08,4326.9,4326.8,11.25517685]
[1760079771375,1e-08,4326.9,4326.8,2.31117685]
[1760079771577,1e-08,4326.9,4326.8,11.25517685]
[1760079772216,1e-08,4326.9,4326.8,11.70067685]
[1760079772391,1e-08,4326.9,4326.8,13.9524473]
[1760079772591,1e-08,4326.9,4326.8,5.0084473]
[1760079772922,1e-08,4326.9,4326.8,2.75667685]
[1760079773234,1e-08,4326.9,4326.8,11.72378861]
[1760079773436,1e-08,4326.9,4326.8,11.70067685]
[1760079774203,1e-08,4326.9,4325.9,0.09259227]
[1760079774432,0.45320001,4326.9,4326.2,6.538]
[1760079774638,0.45320001,4326.9,4326.4,2.31134579]
[1760079774811,0.4532,4326.8,4326.5,3.858]
[1760079775309,1e-08,4326.9,4326.8,2.31117685]
[1760079775862,1e-08,4326.9,4326.8,2.33428861]
[1760079776140,1e-08,4326.9,4326.8,2.31117685]
[1760079776968,1e-08,4326.9,4326.8,8.84917685]
[1760079777549,1e-08,4326.9,4326.3,0.1152]
[1760079777712,1e-08,4326.9,4326.7,2.31122256]
[1760079778232,0.4532,4326.8,4326.7,2.31122256]
[1760079778650,0.4532,4326.8,4326.7,8.84822256]
[1760079780353,1e-08,4326.9,4326.8,2.31117685]
[1760079780526,1e-08,4326.9,4326.7,6.537]
[1760079780738,1e-08,4326.9,4326.8,2.31117685]
[1760079781245,1e-08,4326.9,4326.1,2.8442]
[1760079781246,1e-08,4326.9,4326.1,0.6022]
[1760079781563,1e-08,4326.9,4326.7,2.31121686]
[1760079781750,1e-08,4326.9,4326.8,0.644]
[1760079781961,1e-08,4326.9,4326.8,2.95517685]
[1760079782661,0.45320001,4326.9,4326.8,2.95517685]
[1760079782865,0.42406429,4327.3,4326.9,2.31112278]
[1760079783056,0.002,4327.4,4326.9,2.31112278]
[1760079783455,0.002,4327.4,4326.8,0.644]
[1760079783655,0.1152,4326.9,4326.8,2.31116312]
[1760079783867,0.1152,4326.9,4326.8,6.46516312]
[1760079786370,0.1152,4326.9,4326.8,8.84816312]
[1760079787372,0.1152,4326.9,4326.8,10.20460528]
[1760079788234,0.1152,4326.9,4326.8,8.84816312]
[1760079789433,0.1152,4326.9,4326.8,9.28636312]
[1760079789633,0.1152,4326.9,4326.8,8.84816312]
[1760079791998,0.1152,4326.9,4326.8,2.31116312]
[1760079792177,0.1152,4326.9,4326.8,8.84816312]
[1760079792382,0.1152,4326.9,4326.8,10.64280528]
[1760079793278,0.002,4327.4,4327.3,2.3109098]
[1760079793484,0.002,4327.4,4327.3,8.8479098]
[1760079798486,0.002,4327.4,4327.3,8.8489098]
[1760079799719,0.002,4327.4,4326.8,1.79464216]
[1760079799918,0.1152,4327.3,4327.2,2.3109632]
[1760079800075,0.1152,4327.3,4327.2,3.9079632]
[1760079800274,0.5704,4327.3,4327.2,3.9079632]
[1760079800911,0.1152,4327.3,4327.2,3.9079632]
[1760079801131,0.5704,4327.3,4327.2,3.9079632]
[1760079801416,0.5704,4327.3,4326.5,0.1152]
[1760079801614,0.5704,4327.3,4326.3,0.001]
[1760079801615,0.1152,4327.0,4326.3,0.001]
[1760079801815,0.4552,4327.3,4326.3,0.001]
[1760079802026,0.4552,4326.9,4326.8,0.001]
[1760079803439,0.002,4327.4,4326.8,0.001]
[1760079803739,0.4552,4327.3,4326.8,2.31213506]
[1760079803957,0.4552,4327.2,4326.8,2.31213506]
[1760079804131,0.002,4327.4,4326.8,2.31213506]
[1760079804331,0.4552,4327.1,4326.8,2.31213506]
[1760079804532,0.4552,4327.0,4326.8,0.001]
[1760079804745,0.4552,4326.9,4326.8,0.001]
[1760079806561,0.002,4327.4,4326.8,0.001]
[1760079806762,0.4552,4327.2,4326.8,2.3121607]
[1760079807081,0.4506,4327.1,4326.8,2.3121607]
[1760079807587,0.4506,4327.0,4326.8,0.001]
[1760079808080,0.4506,4327.0,4326.8,2.31217461]
[1760079808478,0.4506,4327.0,4326.8,0.001]
[1760079809360,0.002,4327.4,4326.8,2.31217595]
[1760079809559,0.4506,4327.0,4326.8,2.31217595]
[1760079809760,0.002,4327.4,4326.8,0.001]
[1760079810089,0.002,4327.4,4327.3,2.3109098]
[1760079811260,0.002,4327.4,4327.2,6.538]
[1760079811487,0.002,4327.4,4326.8,0.001]
[1760079811690,0.4506,4327.3,4326.9,0.017]
[1760079812000,0.4506,4327.2,4326.8,0.001]
[1760079812297,0.4506,4327.1,4326.8,0.001]
[1760079812462,0.002,4327.4,4326.8,0.001]
[1760079812663,0.4506,4327.0,4326.8,0.001]
[1760079812867,0.002,4327.4,4326.8,0.001]
[1760079813076,0.002,4327.4,4326.8,0.02411176]
[1760079813267,0.4506,4327.3,4326.8,0.001]
[1760079813764,0.002,4327.4,4327.1,2.31099041]
[1760079814084,0.002,4327.4,4327.3,2.3109098]
[1760079814467,0.002,4327.4,4327.1,2.31101661]
[1760079814468,0.4496,4327.4,4327.0,2.31105344]
[1760079814675,0.4476,4327.3,4327.1,2.31101477]
[1760079814892,0.4476,4327.2,4327.1,2.31101477]
[1760079816370,0.4476,4327.2,4326.8,0.001]
[1760079816572,0.002,4327.4,4326.9,0.515]
[1760079816573,0.4476,4327.1,4326.9,0.515]
[1760079816882,0.4476,4327.1,4326.9,2.82611582]
[1760079817266,0.4476,4327.1,4326.9,8.84811582]
[1760079817591,0.4476,4327.1,4327.0,2.31107002]
[1760079817957,0.4476,4327.1,4326.9,6.537]
[1760079818162,0.4476,4327.1,4326.9,8.84811413]
[1760079818584,0.4476,4327.1,4327.0,2.31107002]
[1760079819578,0.4476,4327.1,4326.8,0.001]
[1760079819781,0.4476,4327.0,4326.8,0.083]
[1760079819962,4.17226422,4327.4,4326.8,0.083]
[1760079819963,0.4476,4326.9,4326.8,0.001]
[1760079821297,0.4476,4326.9,4326.8,2.31216641]
[1760079823081,0.4476,4327.3,4327.1,2.31097867]
[1760079823281,0.4476,4327.2,4327.1,2.31097867]
[1760079823477,0.1152,4327.1,4326.8,0.001]
[1760079823687,0.4476,4327.1,4326.8,0.001]
[1760079824026,0.4476,4327.0,4326.9,2.31112002]
[1760079825114,0.002,4327.4,4327.0,2.31104315]
[1760079825410,0.4476,4327.3,4327.0,2.31104315]
[1760079825611,0.002,4327.4,4327.0,2.31104315]
[1760079825784,0.4476,4327.2,4327.0,2.31104315]
[1760079826179,4.17226422,4327.4,4327.0,2.31104315]
[1760079826401,0.4476,4327.3,4326.8,2.31216885]
[1760079826598,0.4476,4327.3,4327.1,2.31100143]
[1760079826812,0.002,4327.4,4326.9,2.31112343]
[1760079827325,0.002,4327.4,4327.1,2.31096667]
[1760079827509,0.4368,4327.4,4327.1,2.31096667]
[1760079827696,0.4348,4327.3,4327.1,2.31096667]
[1760079829021,0.4348,4327.2,4326.8,0.001]
[1760079829226,0.4348,4327.2,4327.0,2.31106163]
[1760079829636,0.4348,4327.2,4327.0,2.31101683]
[1760079829940,0.4348,4327.2,4326.9,2.31112343]
[1760079830097,0.4348,4327.2,4327.0,2.31107002]
[1760079830297,0.4348,4327.2,4326.8,2.31217055]
[1760079830531,0.4348,4327.2,4327.1,2.31101661]
[1760079830727,0.4348,4327.2,4327.0,2.31106239]
[1760079830934,0.002,4327.4,4327.0,2.31106239]
[1760079831145,0.4348,4327.2,4327.0,2.31106239]
[1760079832034,0.002,4327.4,4326.9,6.534]
[1760079832340,0.4348,4327.3,4326.9,6.534]
[1760079832545,0.002,4327.4,4326.9,8.84511889]
[1760079832546,0.4348,4327.2,4326.9,8.84511889]
[1760079832744,0.002,4327.4,4326.9,8.84511889]
[1760079832926,0.4348,4327.1,4326.9,8.84511889]
[1760079833122,0.4348,4327.1,4326.9,6.534]
[1760079833353,0.4348,4327.1,4326.9,8.84512174]
[1760079833730,0.4348,4327.1,4327.0,2.31107002]
[1760079833942,0.002,4327.4,4327.1,2.31098314]
[1760079834098,0.002,4327.4,4326.9,6.534]
[1760079834099,0.4368,4327.4,4326.9,6.534]
[1760079834303,0.002,4327.4,4326.9,6.534]
[1760079834715,0.002,4327.4,4326.9,8.84511877]
[1760079834910,0.4368,4327.4,4327.1,2.31097814]
[1760079835116,0.4348,4327.3,4327.0,2.31107002]
[1760079835644,0.1152,4327.0,4326.9,8.8450708]
[1760079837149,0.1152,4327.0,4326.9,2.3110708]
[1760079837439,0.1152,4327.0,4326.9,8.8450708]
[1760079839420,0.5593,4327.0,4326.8,0.001]
[1760079839622,0.1152,4327.0,4326.9,6.534]
[1760079840247,0.5593,4327.0,4326.9,6.534]
[1760079841081,0.5593,4327.0,4326.8,2.31217218]
[1760079841381,0.4441,4326.9,4326.8,4.304]
[1760079841674,0.4441,4326.9,4326.8,0.001]
[1760079841833,0.4441,4326.9,4326.8,6.535]
[1760079842644,0.41302407,4326.9,4326.8,6.535]
[1760079843363,0.41302407,4326.9,4326.8,8.84617685]
[1760079843587,0.41302407,4326.9,4326.8,6.535]
[1760079843789,0.41302407,4326.9,4326.8,8.84617685]
[1760079845868,0.41302407,4326.9,4326.8,6.535]
[1760079846204,0.41302407,4326.9,4326.8,0.001]
[1760079846953,2.7241475,4326.9,4326.8,0.001]
[1760079847154,5.13263775,4326.9,4326.8,0.001]
[1760079847358,2.33302407,4326.9,4326.8,0.001]
[1760079847582,6.50328829,4326.9,4326.8,0.001]
[1760079848058,2.33302407,4326.9,4326.8,0.001]
[1760079851157,1.92,4326.9,4326.8,0.001]
[1760079851862,0.0926758,4327.0,4326.8,2.31216945]
[1760079852063,0.4021,4327.0,4326.8,2.77451641]
[1760079852298,0.4021,4327.0,4326.8,2.31216945]
[1760079854317,0.002,4327.3,4326.8,0.001]
[1760079854517,0.002,4327.3,4327.2,2.3109632]
[1760079854716,0.002,4327.3,4327.2,3.50787283]
[1760079855734,0.002,4327.3,4327.2,3.4847632]
[1760079855933,0.002,4327.3,4327.2,4.08745398]
[1760079856815,0.002,4327.3,4327.2,4.06434435]
[1760079857019,0.002,4327.3,4327.2,4.08745398]
[1760079862934,0.002,4327.3,4327.2,0.57958115]
[1760079863133,0.002,4327.3,4327.2,2.478]
[1760079863640,0.002,4327.3,4327.2,2.4698]
[1760079863836,0.002,4327.3,4327.2,4.7807632]
[1760079865706,0.002,4327.3,4327.2,2.3109632]
[1760079865913,0.002,4327.3,4327.2,8.8439632]
[1760079867359,0.443,4327.3,4326.8,0.001]
[1760079867537,6.87233446,4326.9,4326.8,0.001]
[1760079867910,7.31333446,4326.9,4326.8,0.001]
[1760079868111,9.23333446,4326.9,4326.8,0.001]
[1760079869131,11.54445789,4326.9,4326.8,0.001]
[1760079871618,12.17805789,4326.9,4326.8,0.001]
[1760079871956,12.66468234,4326.9,4326.8,0.001]
[1760079872933,4.67212343,4326.9,4326.8,0.001]
[1760079874449,2.361,4326.9,4326.8,0.001]
[1760079874835,4.67212343,4326.9,4326.8,0.001]
[1760079875770,5.30572343,4326.9,4326.8,0.001]
[1760079880246,9.18393871,4326.0,4325.1,2.32708434]
[1760079880437,6.87233446,4326.0,4325.1,2.32708434]
[1760079880642,0.441,4325.9,4325.1,2.31208434]
[1760079880838,0.45921584,4325.9,4325.2,2.31202745]
[1760079881039,0.441,4325.8,4325.2,2.31202745]
[1760079881475,0.441,4325.7,4324.9,6.535]
[1760079881674,0.441,4325.7,4324.9,7.70700534]
[1760079881879,0.441,4325.7,4325.0,2.31213394]
[1760079882080,0.441,4325.7,4324.9,7.70700534]
[1760079882299,0.441,4325.7,4324.7,2.31393697]
[1760079882300,6.87233446,4325.1,4324.7,0.001648]
[1760079882507,2.31192616,4325.4,4324.7,0.001648]
[1760079882797,0.441,4325.0,4324.7,0.001648]
[1760079883000,0.441,4325.0,4324.7,2.31393278]
[1760079883200,0.441,4325.0,4324.7,0.001648]
[1760079883410,0.441,4325.0,4324.7,2.31394067]
[1760079883704,0.441,4325.3,4324.7,2.31394067]
[1760079884005,0.441,4325.3,4324.7,0.001648]
[1760079884204,6.976,4325.6,4324.7,0.001648]
[1760079884405,0.441,4325.3,4324.7,0.001648]
[1760079886407,0.441,4325.3,4324.8,2.31219874]
[1760079886583,6.87233446,4325.4,4324.8,2.31219874]
[1760079886584,0.441,4325.2,4324.8,2.31219874]
[1760079886906,0.438,4325.4,4324.7,0.001648]
[1760079887809,0.438,4325.4,4324.7,2.31393854]
[1760079888015,0.438,4325.4,4324.8,2.31223868]
[1760079888310,2.31182473,4325.6,4324.8,2.31223868]
[1760079888509,6.973,4325.7,4324.9,2.31218851]
[1760079888669,9.2848113,4325.7,4324.7,0.001648]
[1760079889186,6.973,4325.7,4324.9,2.31219218]
[1760079890121,6.535,4325.7,4324.9,2.31219218]
[1760079890340,0.438,4325.6,4324.7,0.02477099]
[1760079890633,7.33872311,4325.9,4325.4,2.31189289]
[1760079890634,0.46638865,4325.9,4325.4,2.31189289]
[1760079890849,7.31033446,4326.8,4325.8,2.31171112]
[1760079891009,1.92,4326.7,4325.9,0.02311657]
[1760079891331,1.92,4326.7,4325.8,2.31166349]
[1760079891528,0.438,4326.6,4325.3,7.0094]
[1760079891833,0.438,4326.5,4325.4,0.94154]
[1760079892523,0.438,4326.5,4325.7,2.31175256]
[1760079892524,0.438,4326.4,4325.7,2.31175256]
[1760079892727,0.438,4326.4,4325.4,3.25345496]
[1760079892728,0.438,4326.4,4325.4,0.94154]
[1760079893033,0.438,4326.4,4325.6,2.78518472]
[1760079893188,1.92,4326.7,4326.0,2.31155692]
[1760079893394,1.92,4326.7,4325.9,2.31165761]
[1760079893603,2.358,4326.7,4325.8,2.31169918]
[1760079893805,2.358,4326.7,4325.7,0.4734]
[1760079894330,2.358,4326.7,4325.9,2.31161844]
[1760079896202,9.18351293,4326.8,4326.0,2.31159833]
[1760079896393,2.31129982,4326.6,4325.7,2.31176103]
[1760079896590,0.438,4326.5,4325.7,2.31176103]
[1760079896804,0.438,4326.4,4325.7,2.31176103]
[1760079897033,0.438,4326.4,4325.4,0.94154]
[1760079897395,0.438,4326.4,4325.6,2.31181673]
[1760079897676,0.438,4326.4,4325.7,2.31175364]
[1760079898276,0.438,4326.4,4325.8,2.31171112]
[1760079899249,0.438,4326.4,4325.5,2.31186551]
[1760079899250,0.438,4326.4,4325.7,2.31176334]
[1760079899739,0.438,4326.4,4325.8,2.31170016]
[1760079900154,0.438,4326.4,4325.7,6.536]
[1760079900375,2.74944301,4326.4,4325.7,6.536]